fUST/lending_fUST_20251117
["ID","MTS","AMOUNT","RATE_DAILY","PERIOD"]
[394168409,1763340642445,-151.0,0.000592,120]
[394168410,1763340642455,-151.0,0.000592,120]
[394168411,1763340642464,-151.0,0.000592,120]
[394168412,1763340642474,-214.199079,0.000592,120]
[394168413,1763340642484,-151.0,0.000592,120]
[394168414,1763340642493,-214.199079,0.000592,120]
[394168415,1763340642504,-151.0,0.000592,120]
[394168416,1763340642513,-214.199079,0.000592,120]
[394168417,1763340642523,-151.0,0.000592,120]
[394168418,1763340642533,-214.199079,0.000592,120]
[394168419,1763340642542,-151.0,0.000592,120]
[394168420,1763340642551,-151.0,0.000592,120]
[394168421,1763340642560,-151.0,0.00059215,120]
[394168422,1763340642570,-151.0,0.00059215,120]
[394168423,1763340642579,-151.0,0.00059215,120]
[394168424,1763340642588,-1011.21,0.0005931,2]
[394168425,1763340642598,-500.0,0.00059699,63]
[394168426,1763340642607,-236.93,0.000597,63]
[394168427,1763340642616,-1000.0,0.0006,120]
[394168428,1763340642626,-151.0,0.00060073,30]
[394168429,1763340642635,-151.0,0.00060073,120]
[394168430,1763340642644,-988.0,0.00060074,120]
[394168431,1763340642653,-175.539,0.00060074,120]
[394168432,1763340642662,-150.0,0.00060074,120]
[394168433,1763340642671,-813.95,0.000602,14]
[394168434,1763340642680,-500.0,0.00060273,120]
[394168435,1763340642689,-500.0,0.00060273,120]
[394168436,1763340642699,-500.0,0.00060273,120]
[394168437,1763340642708,-500.0,0.00060273,120]
[394168438,1763340642717,-500.0,0.00060273,120]
[394168439,1763340642727,-500.0,0.00060273,120]
[394168440,1763340642739,-500.0,0.00060273,120]
[394168441,1763340642750,-500.0,0.00060273,120]
[394168442,1763340642762,-500.0,0.00060273,120]
[394168443,1763340642772,-500.0,0.00060273,120]
[394168444,1763340642782,-500.0,0.00060273,120]
[394168445,1763340642792,-500.0,0.00060273,120]
[394168446,1763340642802,-500.0,0.00060273,120]
[394168447,1763340642811,-500.0,0.00060273,120]
[394168448,1763340642820,-500.0,0.00060273,120]
[394168449,1763340642830,-495.24248759,0.00060273,120]
[394168450,1763340642841,-1000.0,0.00061,120]
[394168451,1763340642852,-4000.0,0.00061109,120]
[394168452,1763340642862,-393.0,0.00061162,120]
[394168453,1763340642873,-500.0,0.00061699,65]
[394168454,1763340642884,-199999.0,0.00062,120]
[394168455,1763340642893,-1000.0,0.00062,120]
[394168456,1763340642905,-168.0,0.00062459,2]
[394168457,1763340642915,-168.0,0.00062643,2]
[394168458,1763340642924,-500.0,0.00062896,22]
[394168459,1763340642934,-153.043106,0.00063014,120]
[394168460,1763340642943,-151.0,0.00063073,120]
[394168461,1763340642953,-151.0,0.00063073,120]
[394168462,1763340642964,-151.0,0.00063073,120]
[394168464,1763340642973,-151.0,0.00063073,120]
[394168465,1763340642983,-151.0,0.00063073,120]
[394168466,1763340642991,-151.0,0.00063073,120]
[394168467,1763340643002,-151.0,0.00063073,120]
[394168468,1763340643011,-151.0,0.00063073,60]
[394168469,1763340643021,-985.0,0.00063074,120]
[394168470,1763340643030,-348.05485741,0.00063128,2]
[394168471,1763340643041,-420.0,0.00063162,120]
[394168472,1763340643051,-155.153875,0.000633,15]
[394168474,1763340643060,-561.69056789,0.00063338,2]
[394168475,1763340643070,-1011.0430222,0.00063338,2]
[394168476,1763340643079,-1797.40981725,0.00063338,2]
[394168477,1763340643087,-695.96931399,0.00063338,2]
[394168478,1763340643097,-1252.74476518,0.00063338,2]
[394168479,1763340643107,-2227.10180477,0.00063338,2]
[394168480,1763340643116,-3479.84656995,0.00063338,2]
[394168481,1763340643126,-173.35,0.00063461,30]
[394168482,1763340643135,-500.0,0.00063973,91]
[394168483,1763340643144,-2000.0,0.00064,120]
[394168484,1763340643155,-1000.0,0.00064165,2]
[394168485,1763340643164,-1000.0,0.00064165,2]
[394168486,1763340643173,-1000.0,0.00064165,2]
[394168487,1763340643182,-1000.0,0.00064165,2]
[394168488,1763340643192,-1000.0,0.00064165,2]
[394168489,1763340643201,-1000.0,0.00064165,2]
[394168490,1763340643211,-1000.0,0.00064165,2]
[394168491,1763340643220,-1000.0,0.00064165,2]
[394168492,1763340643230,-1000.0,0.00064165,2]
[394168493,1763340643240,-1000.0,0.00064165,2]
[394168494,1763340643249,-1000.0,0.00064165,2]
[394168495,1763340643259,-1000.0,0.00064165,2]
[394168496,1763340643267,-1098.08216946,0.00064165,2]
[394168497,1763340643276,-500.0,0.00064178,28]
[394168498,1763340643286,-155.153875,0.00064198,120]
[394168499,1763340643296,-500.0,0.00064278,3]
[394168500,1763340643306,-500.0,0.00064433,10]
[394168501,1763340643316,-155.153875,0.00064434,10]
[394168502,1763340643326,-500.0,0.00064438,7]
[394168503,1763340643336,-500.0,0.00064443,30]
[394168504,1763340643345,-500.0,0.00064497,30]
[394168505,1763340643354,-500.0,0.00064497,30]
[394168506,1763340643363,-500.0,0.00064498,30]
[394168507,1763340643373,-500.0,0.00064499,30]
[394168508,1763340643387,-153.0,0.00064997,120]
[394168509,1763340643396,-153.0,0.00064997,120]
[394168510,1763340643406,-153.0,0.00064997,120]
[394168511,1763340643415,-153.0,0.00064997,120]
[394168512,1763340643424,-153.0,0.00064997,120]
[394168513,1763340643434,-153.0,0.00064997,120]
[394168514,1763340643444,-1006.0,0.00065,120]
[394168515,1763340643455,-1135.0,0.00065,120]
[394168516,1763340643464,-153.0,0.00065037,120]
[394168517,1763340643474,-153.0,0.00065037,120]
[394168518,1763340643483,-153.0,0.0006507,120]
[394168519,1763340643492,-153.0,0.0006507,120]
[394168520,1763340643501,-153.0,0.0006507,120]
[394168521,1763340643510,-172.17690569,0.00065162,120]
[394168522,1763340643520,-3000.0,0.000652,120]
[394168523,1763340643529,-200.0,0.00065364,120]
[394168524,1763340643539,-2155.96,0.000654,14]
[394168525,1763340643548,-155.153875,0.0006596,2]
[394168526,1763340643558,-154.240954,0.0006596,2]
[394168527,1763340643567,-1135.0,0.00066,120]
[394168528,1763340643577,-170.0,0.000665,120]
[394168529,1763340643587,-155.153875,0.00066784,120]
[394168530,1763340643596,-277.750317,0.00066784,120]
[394168531,1763340643605,-154.240954,0.00066784,120]
[394168532,1763340643614,-500.0,0.00066859,4]
[394168533,1763340643624,-3000.0,0.00067,120]
[394168534,1763340643633,-1717.4316913,0.00067495,120]
[394168535,1763340643643,-1806.16,0.000675,120]
[394168536,1763340643651,-248.6874137,0.00067668,5]
[394168537,1763340643661,-1386.8915068,0.00067803,5]
[394168538,1763340643670,-7646.0426983,0.00067803,5]
[394168539,1763340643678,-1647.8671623,0.00067803,5]
[394168540,1763340643687,-500.0,0.00067837,120]
[394168541,1763340643696,-500.0,0.00067838,120]
[394168542,1763340643705,-500.0,0.00067895,5]
[394168543,1763340643714,-317.18996775,0.00067896,5]
[394168544,1763340643723,-1267.49111113,0.00067896,5]
[394168545,1763340643732,-257.33319173,0.00067896,5]
[394168546,1763340643741,-1029.33276691,0.00067896,5]
[394168547,1763340643751,-2313.68272682,0.00067896,5]
[394168548,1763340643760,-500.0,0.00067897,2]
[394168549,1763340643769,-63718.59045528,0.000679,120]
[394168550,1763340643778,-1998.590103,0.0006796,30]
[394168551,1763340643798,-500.0,0.00067979,120]
[394168552,1763340643808,-500.0,0.00067979,120]
[394168553,1763340643818,-1000.0,0.0006798,30]
[394168554,1763340643827,-1182.77842,0.0006798,30]
[394168555,1763340643837,-216.69,0.00067994,30]
[394168556,1763340643847,-500.0,0.00067999,14]
[394168557,1763340643856,-1387.13860776,0.00067999,14]
[394168558,1763340643866,-500.0,0.00067999,14]
[394168559,1763340643875,-500.0,0.00067999,14]
[394168560,1763340643884,-500.0,0.00067999,14]
[394168561,1763340643894,-500.0,0.00067999,14]
[394168562,1763340643903,-500.0,0.00067999,14]
[394168563,1763340643913,-67474.78343307,0.00068,14]
[394168564,1763340643923,-1000.0,0.00068,120]
[394168565,1763340643933,-400.0,0.00068,120]
[394168566,1763340643942,-504.57839113,0.00068,120]
[394168567,1763340643952,-1000.0,0.00068,30]
[394168568,1763340643961,-1000.0,0.00068,30]
[394168569,1763340643971,-227.92,0.00068058,120]
[394168570,1763340643980,-163.62673061,0.00068168,5]
[394168571,1763340643990,-200.0,0.00069,120]
[394168572,1763340644000,-3000.0,0.00069,120]
[394168573,1763340644009,-3000.0,0.0006901,120]
[394168574,1763340644019,-3000.0,0.0006902,120]
[394168575,1763340644029,-5412.091008,0.0006903,120]
[394168576,1763340644038,-200.0,0.000691,120]
[394168577,1763340644047,-215.68656,0.000692,120]
[394168578,1763340644057,-2132.9,0.00069293,2]
[394168579,1763340644067,-2132.9,0.00069293,2]
[394168580,1763340644077,-2132.9,0.00069293,2]
[394168581,1763340644087,-2132.9,0.00069293,2]
[394168582,1763340644096,-2132.9,0.00069293,2]
[394168583,1763340644105,-2132.9,0.00069293,2]
[394168584,1763340644115,-2132.9,0.00069293,2]
[394168585,1763340644229,-2132.9,0.00069293,2]
[394168586,1763340644239,-813.95,0.000693,14]
[394168587,1763340644248,-1500.0,0.00069479,120]
[394168588,1763340644257,-200.16404205,0.00069526,120]
[394168589,1763340644266,-236.93,0.000697,73]
[394168590,1763340644275,-5000.0,0.0007,120]
[394168591,1763340644284,-200.0,0.0007,120]
[394168592,1763340644295,-1998.85197212,0.0007,120]
[394168593,1763340644303,-3066.8852909,0.0007,60]
[394168594,1763340644312,-155.153875,0.0007,60]
[394168595,1763340644321,-166.68,0.00070238,120]
[394168596,1763340644330,-200.0,0.00070828,120]
[394168597,1763340644338,-488.01641127,0.00071,120]
[394168598,1763340644346,-200.0,0.00071,120]
[394168599,1763340644356,-200.0,0.00072,120]
[394168600,1763340644365,-243.606198,0.00072098,120]
[394168601,1763340644383,-2155.96,0.000721,14]
[394168602,1763340644393,-260.02,0.00072526,30]
[394168603,1763340644402,-200.0,0.00074,120]
[394168604,1763340644413,-1000.0,0.00074443,120]
[394168605,1763340644424,-222.8,0.00074474,60]
[394168606,1763340644433,-200.0,0.000748,120]
[394168607,1763340644443,-200.0,0.000748,120]
[394168608,1763340644452,-15185.42336936,0.000749,120]
[394168609,1763340644462,-151.0,0.000749,120]
[394168610,1763340644471,-151.0,0.000749,120]
[394168611,1763340644480,-151.0,0.000749,120]
[394168612,1763340644489,-151.0,0.000749,90]
[394168613,1763340644499,-151.0,0.000749,120]
[394168614,1763340644508,-151.0,0.000749,30]
[394168615,1763340644517,-151.0,0.000749,120]
[394168616,1763340644526,-151.0,0.000749,120]
[394168617,1763340644535,-151.0,0.000749,120]
[394168618,1763340644546,-151.0,0.000749,120]
[394168619,1763340644556,-199.919073,0.000749,120]
[394168620,1763340644565,-151.0,0.000749,120]
[394168621,1763340644574,-151.0,0.000749,120]
[394168622,1763340644583,-259.132667,0.000749,120]
[394168623,1763340644592,-151.0,0.000749,120]
[394168624,1763340644602,-151.0,0.000749,120]
[394168625,1763340644611,-151.0,0.000749,120]
[394168626,1763340644620,-151.0,0.000749,120]
[394168627,1763340644629,-214.199079,0.000749,120]
[394168628,1763340644638,-214.199079,0.000749,120]
[394168629,1763340644648,-151.0,0.000749,120]
[394168630,1763340644657,-214.199079,0.000749,120]
[394168631,1763340644667,-153.679799,0.000749,120]
[394168632,1763340644676,-214.199079,0.000749,120]
[394168633,1763340644685,-151.0,0.000749,120]
[394168634,1763340644694,-151.0,0.000749,120]
[394168635,1763340644703,-218.638908,0.000749,120]
[394168636,1763340644713,-218.638908,0.000749,120]
[394168637,1763340644722,-151.0,0.000749,120]
[394168638,1763340644732,-218.638908,0.000749,120]
[394168639,1763340644742,-151.0,0.000749,30]
[394168640,1763340644751,-169.265163,0.000749,120]
[394168641,1763340644761,-218.638908,0.000749,120]
[394168642,1763340644771,-169.265163,0.000749,120]
[394168643,1763340644780,-169.265163,0.000749,120]
[394168644,1763340644790,-169.265163,0.000749,120]
[394168645,1763340644799,-151.0,0.000749,120]
[394168646,1763340644808,-151.0,0.000749,120]
[394168647,1763340644818,-151.0,0.000749,120]
[394168648,1763340644827,-204.28392,0.000749,120]
[394168649,1763340644841,-204.28392,0.000749,120]
[394168650,1763340644851,-204.28392,0.000749,120]
[394168651,1763340644860,-204.28392,0.000749,120]
[394168652,1763340644871,-151.0,0.000749,120]
[394168653,1763340644880,-151.0,0.000749,120]
[394168654,1763340644890,-151.0,0.000749,120]
[394168655,1763340644900,-151.0,0.000749,120]
[394168656,1763340644909,-151.0,0.000749,120]
[394168657,1763340644919,-151.0,0.000749,120]
[394168658,1763340644929,-151.0,0.000749,120]
[394168659,1763340644939,-151.0,0.000749,7]
[394168660,1763340644949,-151.0,0.000749,120]
[394168661,1763340644958,-151.0,0.000749,120]
[394168662,1763340644968,-151.0,0.000749,120]
[394168663,1763340644978,-151.0,0.000749,30]
[394168664,1763340644989,-10000.0,0.000749,120]
[394168665,1763340644998,-151.0,0.000749,120]
[394168666,1763340645008,-10000.0,0.000749,120]
[394168667,1763340645018,-10000.0,0.000749,120]
[394168668,1763340645027,-10000.0,0.000749,120]
[394168669,1763340645037,-151.0,0.000749,120]
[394168670,1763340645050,-8943.15836573,0.000749,120]
[394168671,1763340645060,-151.0,0.000749,120]
[394168672,1763340645069,-151.0,0.000749,120]
[394168673,1763340645079,-151.0,0.000749,120]
[394168674,1763340645088,-151.0,0.000749,120]
[394168675,1763340645097,-151.0,0.000749,120]
[394168676,1763340645107,-151.0,0.000749,120]
[394168677,1763340645118,-151.0,0.000749,120]
[394168678,1763340645127,-298.585852,0.000749,120]
[394168679,1763340645137,-151.0,0.000749,120]
[394168680,1763340645147,-151.0,0.000749,120]
[394168681,1763340645158,-330.602804,0.000749,120]
[394168682,1763340645168,-330.602804,0.000749,120]
[394168683,1763340645178,-330.602804,0.000749,120]
[394168684,1763340645187,-330.602804,0.000749,120]
[394168685,1763340645197,-5000.0,0.00075,120]
[394168686,1763340645206,-1998.85197212,0.00075,120]
[394168687,1763340645215,-210.55384318,0.00075,2]
[394168688,1763340645224,-151.0,0.00075,120]
[394168689,1763340645234,-151.0,0.00075,120]
[394168690,1763340645244,-151.0,0.00075,120]
[394168691,1763340645253,-151.0,0.00075,120]
[394168692,1763340645262,-151.0,0.00075,120]
[394168693,1763340645271,-151.0,0.00075,120]
[394168694,1763340645281,-151.0,0.00075,120]
[394168695,1763340645290,-151.0,0.00075,120]
[394168696,1763340645300,-156.675197,0.00075,120]
[394168697,1763340645309,-156.675197,0.00075,120]
[394168698,1763340645318,-156.675197,0.00075,120]
[394168699,1763340645328,-156.675197,0.00075,120]
[394168700,1763340645338,-151.0,0.00075,120]
[394168701,1763340645349,-151.0,0.00075,120]
[394168702,1763340645359,-151.0,0.00075,120]
[394168703,1763340645368,-11824.63351346,0.00075444,120]
[394168704,1763340645384,-1706.0627317,0.00076406,8]
[394168705,1763340645395,-174.0,0.00077,120]
[394168706,1763340645406,-303.36,0.00077059,30]
[394168707,1763340645419,-239.76,0.00077078,30]
[394168708,1763340645428,-1715.35326254,0.000777,120]
[394168709,1763340645438,-50000.0,0.000779,120]
[394168710,1763340645447,-200.0,0.00078,120]
[394168711,1763340645460,-25204.40402365,0.00078146,120]
[394168712,1763340645471,-380.6740505,0.00078326,9]
[394168713,1763340645481,-243.606198,0.00078587,120]
[394168714,1763340645490,-5000.0,0.0008,120]
[394168715,1763340645499,-3006.0401149,0.0008,120]
[394168716,1763340645509,-123687.0,0.0008,120]
[394168717,1763340645520,-200.0,0.0008,120]
[394168718,1763340645530,-1998.85197212,0.0008,120]
[394168719,1763340645541,-181.815,0.0008,60]
[394168720,1763340645551,-1801.511376,0.0008,120]
[394168721,1763340645561,-183.0,0.0008,120]
[394168722,1763340645571,-346.7,0.00081592,30]
[394168723,1763340645581,-200.0,0.00082,120]
[394168724,1763340645592,-181.26,0.00082192,120]
[394168725,1763340645604,-813.95,0.000822,30]
[394168726,1763340645613,-24047.41507669,0.000835,120]
[394168727,1763340645623,-162.04,0.000835,60]
[394168728,1763340645632,-345.91266578,0.00084,120]
[394168729,1763340645641,-2155.96,0.00084,30]
[394168730,1763340645651,-10000.0,0.0008439,120]
[394168731,1763340645662,-1000.0,0.00084443,120]
[394168732,1763340645671,-2000.0,0.00085,120]
[394168733,1763340645682,-1998.24333978,0.00085,120]
[394168734,1763340645693,-200.60553508,0.00085028,7]
[394168735,1763340645704,-243.606198,0.00085076,120]
[394168736,1763340645715,-390.04,0.00086125,30]
[394168737,1763340645726,-290.61,0.00087134,60]
[394168738,1763340645747,-200.0,0.00088,120]
[394168739,1763340645759,-308.42,0.00089442,120]
[394168740,1763340645770,-1500.0,0.000895,120]
[394168741,1763340645782,-1998.91689858,0.0009,120]
[394168742,1763340645794,-200.0,0.0009,120]
[394168743,1763340645803,-5000.0,0.0009,120]
[394168744,1763340645814,-194.5344027,0.00090658,30]
[394168745,1763340645824,-243.606198,0.00091564,120]
[394168746,1763340645835,-200.0,0.000935,120]
[394168747,1763340645845,-200.0,0.000935,120]
[394168748,1763340645854,-200.0,0.000935,120]
[394168749,1763340645864,-200.0,0.000935,120]
[394168750,1763340645874,-200.0,0.000935,120]
[394168751,1763340645884,-300.13315611,0.000935,120]
[394168752,1763340645893,-200.0,0.00094,120]
[394168753,1763340645903,-1000.0,0.00094443,120]
[394168754,1763340645914,-6145.7488061,0.0009488,60]
[394168755,1763340645923,-2000.0,0.00095,120]
[394168756,1763340645933,-1998.24333978,0.00095,120]
[394168757,1763340645943,-6062.55856994,0.000975,30]
[394168758,1763340645953,-200.0,0.00098,120]
[394168759,1763340645963,-243.606198,0.00098053,120]
[394168760,1763340645973,-421.34,0.00099453,120]
[394168761,1763340645983,-1000.0,0.00099999,120]
[394168762,1763340645993,-221.01130419,0.001,120]
[394168763,1763340646002,-200.0,0.001,120]
[394168764,1763340646012,-1998.91689858,0.001,120]
[394168765,1763340646021,-542.72404032,0.001,120]
[394168766,1763340646031,-2222.0,0.001,120]
[394168767,1763340646043,-1000.0,0.001,120]
[394168768,1763340646052,-1000.0,0.001,2]
[394168769,1763340646062,-1500.0,0.00104,120]
[394168770,1763340646072,-243.606198,0.00104542,120]
[394168771,1763340646082,-2500.0,0.00109,120]
[394168772,1763340646093,-153.0,0.00110163,120]
[394168773,1763340646103,-153.0,0.00110163,120]
[394168774,1763340646114,-153.0,0.00110163,120]
[394168775,1763340646124,-153.0,0.00110178,120]
[394168776,1763340646134,-153.0,0.00110178,120]
[394168777,1763340646144,-153.0,0.00110178,120]
[394168778,1763340646153,-153.0,0.00110577,120]
[394168779,1763340646163,-243.606198,0.00111031,120]
[394168780,1763340646173,-2155.96,0.00112,30]
[394168781,1763340646183,-813.95,0.00112,30]
[394168782,1763340646193,-200.0,0.001122,120]
[394168783,1763340646302,-200.0,0.001122,120]
[394168784,1763340646312,-200.0,0.001122,120]
[394168785,1763340646322,-200.0,0.001122,120]
[394168786,1763340646331,-200.0,0.001122,120]
[394168787,1763340646340,-200.0,0.001122,120]
[394168788,1763340646349,-243.606198,0.0011752,120]
[394168789,1763340646359,-1000.000001,0.0012,120]
[394168790,1763340646369,-200.0,0.0012,120]
[394168791,1763340646382,-200.0,0.0012136,120]
[394168792,1763340646399,-200.0,0.00122605,120]
[394168793,1763340646409,-2500.0,0.00124,120]
[394168794,1763340646420,-500.0,0.00124,120]
[394168795,1763340646431,-243.606198,0.00124009,120]
[394168796,1763340646441,-1666.0,0.00124052,120]
[394168797,1763340646450,-1331.04841701,0.00125,60]
[394168798,1763340646459,-243.606198,0.00130497,120]
[394168799,1763340646469,-243.606198,0.00136986,120]
[394168800,1763340646478,-398.89293,0.00136986,120]
[394168801,1763340646489,-2500.0,0.00139,120]
[394168802,1763340646499,-398.89293,0.00144196,120]
[394168803,1763340646510,-113392.851,0.001444,120]
[394168804,1763340646521,-151.0,0.001444,30]
[394168805,1763340646531,-151.0,0.001444,120]
[394168806,1763340646541,-151.0,0.001444,120]
[394168807,1763340646552,-151.0,0.001444,120]
[394168809,1763340646562,-151.0,0.001444,120]
[394168811,1763340646571,-151.0,0.001444,120]
[394168812,1763340646580,-151.0,0.001444,120]
[394168813,1763340646589,-151.0,0.001444,120]
[394168814,1763340646599,-151.0,0.001444,120]
[394168815,1763340646608,-151.0,0.001444,120]
[394168816,1763340646618,-151.0,0.001444,120]
[394168817,1763340646627,-151.0,0.001444,60]
[394168818,1763340646637,-500.0,0.00145,120]
[394168819,1763340646646,-1889.20730293,0.0014802,71]
[394168820,1763340646656,-2500.0,0.00149,120]
[394168821,1763340646666,-202.56121097,0.00149999,120]
[394168823,1763340646676,-223341.33793152,0.0015,120]
[394168824,1763340646722,-4957.88624,0.0015,120]
[394168825,1763340647652,-500.0,0.00059999,120]
[394168826,1763340647662,-500.0,0.00060072,120]
[394168827,1763340647671,-500.0,0.00060272,120]
[394168828,1763340647680,-500.0,0.00060272,120]
[394168829,1763340647689,-151.0,0.00063073,30]
[394168830,1763340647699,-1381.17757996,0.0015,120]
[394168831,1763340647710,-553.5747004,0.0015,120]
[394168832,1763340647741,-150.0,0.00045799,120]
[394168833,1763340647750,-177.0,0.00047799,120]
[394168834,1763340647760,-204.0,0.00049799,120]
[394168835,1763340647769,-151.0,0.00063073,120]
[394168836,1763340647778,-247.66343807,0.0007789,10]
[394168837,1763340647790,-95.72656193,0.0007789,10]
[394168838,1763340647799,-618.25744388,0.0015,120]
[394168839,1763340652073,4713.02569735,0.00039,2]
[394168842,1763340693876,270.03340548,0.00030177,2]
[394168843,1763340694236,270.03340548,0.00035228,56]
[394168844,1763340829678,150.0,0.00038426,2]
[394168845,1763340895962,150.0,0.00037531,2]
[394168846,1763340966806,179.0,0.00035,120]
[394168847,1763340977792,150.0,0.00033062,2]
[394168848,1763340978318,186.19044989,0.00036068,2]
[394168849,1763340978344,41.14955011,0.00036068,2]
[394168850,1763340993819,270.03340549,0.00031765,30]
[394168851,1763341056423,150.0,0.00033019,2]
[394168852,1763341056815,224.35,0.0003602,2]
[394168853,1763341090951,163.0,0.00012,120]
[394168854,1763341136093,150.0,0.0003554,2]
[394168855,1763341140410,545.77020011,0.00038573,20]
[394168858,1763341221243,150.0,0.00033457,2]
[394168859,1763341221740,211.0,0.00036499,2]
[394168860,1763341300655,150.0,0.00035796,2]
[394168861,1763341339253,1000.0,0.00036666,10]
[394168862,1763341358185,1000.0,0.00036667,10]
[394168863,1763341381340,150.0,0.00033274,2]
[394168864,1763341381779,203.51,0.00036299,2]
[394168865,1763341449791,178.0,0.00035,120]
[394168866,1763341460079,150.0,0.0003279,2]
[394168867,1763341460511,194.51,0.00035771,2]
[394168868,1763341536555,150.0,0.00032757,2]
[394168869,1763341536964,193.38,0.00035735,2]
[394168870,1763341549635,268.479591,0.00013699,2]
[394168871,1763341550057,268.479591,0.00020187,2]
[394168872,1763341550283,268.479591,0.00026676,2]
[394168873,1763341550514,268.479591,0.00033165,2]
[394168875,1763341613632,150.0,0.00032721,2]
[394168876,1763341614033,184.64,0.00035696,2]
[394168877,1763341635131,-1086.0,0.00038573,20]
[394168878,1763341635157,-206.2454174,0.00038671,2]
[394168879,1763341680095,268.37,0.0001998,7]
[394168880,1763341691098,150.0,0.00032684,2]
[394168881,1763341691512,175.28,0.00035656,2]
[394168882,1763341702206,160.0,0.0003725,2]
[394168883,1763341702527,260.0,0.00037798,2]
[394168885,1763341767493,150.0,0.00032922,2]
[394168886,1763341768141,167.0,0.00035915,2]
[394168888,1763341800083,1199.0,0.00035,10]
[394168889,1763341823372,1764.96775016,0.00037906,2]
[394168917,1763341832513,-507.45208129,0.00038006,2]
[394168920,1763341832528,-769.67123871,0.00038006,2]
[394168922,1763341832538,-250.51,0.00038908,2]
[394168924,1763341832550,-268.479591,0.00039654,2]
[394168926,1763341832562,-160.0,0.00039656,2]
[394168928,1763341832573,-181.77634872,0.00040078,120]
[394168931,1763341832585,-300.0,0.00040176,5]
[394168933,1763341832596,-300.0,0.00040177,5]
[394168935,1763341832607,-300.0,0.00040177,5]
[394168937,1763341832619,-550.0,0.00040177,5]
[394168940,1763341832631,-1460.0,0.00040177,5]
[394168942,1763341832643,-400.0,0.00040178,5]
[394168944,1763341832654,-260.0,0.00040204,2]
[394168947,1763341832667,-180.0,0.00040751,2]
[394168949,1763341832677,-7554.86725865,0.00041621,28]
[394168952,1763341832690,-185.32004369,0.00041631,2]
[394168955,1763341832700,-286.16,0.0004171,10]
[394168958,1763341832710,-500.0,0.0004172,31]
[394168960,1763341832722,-500.0,0.0004172,31]
[394168964,1763341832734,-500.0,0.0004172,31]
[394168966,1763341832746,-500.0,0.0004172,31]
[394168968,1763341832759,-500.0,0.0004172,7]
[394168971,1763341832770,-437.17081058,0.0004172,31]
[394168973,1763341832781,-500.0,0.0004172,31]
[394168975,1763341832795,-500.0,0.0004172,7]
[394168977,1763341832806,-500.0,0.0004172,31]
[394168979,1763341832816,-166.93053533,0.0004172,31]
[394168981,1763341832828,-500.0,0.0004172,31]
[394168983,1763341832838,-500.0,0.0004172,31]
[394168986,1763341832850,-500.0,0.0004172,7]
[394168988,1763341832861,-500.0,0.0004172,31]